fUST/lending_fUST_20241103
["ID","MTS","AMOUNT","RATE_DAILY","PERIOD"]
[341203756,1730639447321,-500.0,0.00038356,31]
[341203757,1730639447331,-1090.08021332,0.0003851,2]
[341203758,1730639447340,-30585.89623131,0.00038524,30]
[341203759,1730639447352,-366610.78843,0.00038524,30]
[341203765,1730640548159,-232.9054363,0.000212,2]
[341203766,1730640548181,-585.9193469,0.00025,2]
[341203839,1730641685924,165.202343,0.00013973,2]
[341203840,1730641756104,-1104.70336074,0.00025,2]
[341203884,1730641832049,-2149.77686377,0.00025,2]
[341203885,1730641832059,-2000.0,0.0003,7]
[341203886,1730641832069,-84.44533062,0.00030906,2]
[341203914,1730641838414,-86.39776332,0.00030906,2]
[341203915,1730641838426,-400.0,0.00031009,2]
[341203916,1730641838436,-400.0,0.00031009,2]
[341203917,1730641838446,-348.72356024,0.0003101,30]
[341203932,1730641843251,-151.27643976,0.0003101,30]
[341203933,1730641843269,-500.0,0.0003101,30]
[341203934,1730641843281,-500.0,0.0003101,30]
[341203935,1730641843292,-500.0,0.0003101,30]
[341203936,1730641843302,-500.0,0.0003101,30]
[341203937,1730641843311,-500.0,0.0003101,30]
[341203938,1730641843321,-500.0,0.0003101,30]
[341203939,1730641843333,-150.0,0.00032046,2]
[341203940,1730641843343,-245.4932351,0.00032614,2]
[341203941,1730641843352,-164.0421822,0.00033016,2]
[341203942,1730641843363,-183.357259,0.00033221,2]
[341203943,1730641843372,-250.0,0.0003331,2]
[341203944,1730641843382,-560.0,0.00033386,2]
[341203945,1730641843391,-2534.52,0.000334,2]
[341203946,1730641843401,-183.357259,0.00033798,2]
[341203947,1730641843411,-200.0,0.0003411,2]
[341203948,1730641843421,-183.357259,0.00034375,2]
[341203949,1730641843430,-183.357259,0.00034952,2]
[341203951,1730641843439,-302.8438836,0.00036082,2]
[341203953,1730641843449,-303.1683464,0.00036082,2]
[341203954,1730641843458,-504.51,0.00037,30]
[341203955,1730641843468,-158.77864073,0.00037473,2]
[341203956,1730641843477,-272.52005333,0.00037473,2]
[341203957,1730641843489,-1528.35,0.0003749,10]
[341203958,1730641843499,-1273.63,0.0003749,10]
[341203959,1730641843508,-1061.35,0.0003749,10]
[341203960,1730641843518,-884.46,0.0003749,10]
[341203961,1730641843527,-500.0,0.00037498,4]
[341203962,1730641843536,-380.0,0.00037498,4]
[341203963,1730641843545,-246.09,0.00037498,4]
[341203964,1730641843555,-200.0,0.00037498,4]
[341203965,1730641843564,-1446.31,0.00037498,4]
[341203966,1730641843573,-281.55261986,0.00037498,120]
[341203967,1730641843582,-584.36631282,0.00037499,7]
[341203968,1730641843591,-275.58418924,0.00037499,15]
[341203969,1730641843601,-500.0,0.00037499,15]
[341203970,1730641843610,-500.0,0.00037499,15]
[341203971,1730641843619,-336.34537648,0.00037499,15]
[341203972,1730641843629,-500.0,0.00037499,15]
[341203973,1730641843638,-500.0,0.00037499,4]
[341203974,1730641843765,-500.0,0.00037499,7]
[341203975,1730641843774,-500.0,0.00037499,4]
[341203976,1730641843784,-500.0,0.00037499,2]
[341203977,1730641843793,-4172.98,0.00037499,120]
[341203978,1730641843802,-146796.59860451,0.000375,60]
[341203982,1730642853353,-169.52463443,0.00024658,2]
[341203983,1730642947126,-4000.0,0.0002401,7]
[341203984,1730642947152,-150.0,0.00029,2]
[341203985,1730642947173,-358.0,0.00031009,2]
[341203986,1730642947194,-500.0,0.0003101,30]
[341203987,1730642947215,-500.0,0.0003101,30]
[341203988,1730642947235,-500.0,0.0003101,30]
[341203989,1730642947255,-500.0,0.0003101,30]
[341203990,1730642947277,-500.0,0.0003101,30]
[341203991,1730642955128,-354.69669518,0.00031897,2]
[341203992,1730642955151,-150.0,0.00032,2]
[341203993,1730642961110,-265.9010051,0.00033236,2]
[341203994,1730642961130,-2281.07,0.000334,2]
[341203995,1730642961159,-152.15,0.000334,31]
[341203996,1730642961185,-152.15,0.000334,31]
[341203997,1730642961209,-152.15,0.000334,31]
[341203998,1730642961232,-152.15,0.000334,31]
[341203999,1730642961254,-152.15,0.000334,31]
[341204000,1730642961280,-152.15,0.000334,31]
[341204001,1730642961303,-152.15,0.000334,31]
[341204002,1730642961330,-152.15,0.000334,31]
[341204003,1730642961354,-152.15,0.000334,31]
[341204004,1730642961378,-152.15,0.000334,31]
[341204005,1730642961405,-152.15,0.000344,31]
[341204006,1730642961429,-152.15,0.000344,31]
[341204007,1730642961456,-152.15,0.000344,31]
[341204008,1730642961480,-152.15,0.000344,31]
[341204009,1730642961503,-152.15,0.000344,31]
[341204010,1730642961526,-152.15,0.000344,31]
[341204011,1730642961549,-152.15,0.000344,31]
[341204012,1730642961573,-152.15,0.000344,31]
[341204013,1730642961595,-152.15,0.000344,31]
[341204014,1730642961619,-152.15,0.000344,31]
[341204015,1730642961644,-152.15,0.000344,31]
[341204016,1730642961668,-152.15,0.000344,31]
[341204017,1730642961697,-152.15,0.000344,31]
[341204018,1730642961720,-152.15,0.000344,31]
[341204019,1730642961746,-152.15,0.000344,31]
[341204020,1730642961772,-152.15,0.000344,31]
[341204021,1730642961795,-152.15,0.000344,31]
[341204022,1730642961817,-31.19071341,0.000344,31]
[341204023,1730642998781,238.24907026,0.00024558,2]
[341204024,1730643002396,169.181,0.00021036,2]
[341204058,1730643032196,-120.95928659,0.000344,31]
[341204060,1730643032209,-152.15,0.000344,31]
[341204062,1730643032219,-81.32367678,0.000344,31]
[341204064,1730643032231,-70.82632322,0.000344,31]
[341204066,1730643032240,-150.0,0.00035,2]
[341204067,1730643032250,-152.15,0.000354,31]
[341204069,1730643032259,-152.15,0.000354,31]
[341204071,1730643032269,-152.15,0.000354,31]
[341204072,1730643032279,-152.15,0.000354,31]
[341204073,1730643032289,-152.15,0.000354,31]
[341204074,1730643032298,-152.15,0.000354,31]
[341204075,1730643032308,-152.15,0.000354,31]
[341204076,1730643032318,-152.15,0.000354,31]
[341204078,1730643032328,-152.15,0.000354,31]
[341204080,1730643032338,-152.15,0.000354,31]
[341204081,1730643032347,-152.15,0.000354,31]
[341204082,1730643032357,-152.15,0.000354,31]
[341204083,1730643032367,-152.15,0.000354,31]
[341204084,1730643032377,-152.15,0.000354,31]
[341204085,1730643032387,-152.15,0.000354,31]
[341204086,1730643032396,-152.15,0.000354,31]
[341204087,1730643032406,-152.15,0.000354,31]
[341204088,1730643032415,-152.15,0.000354,31]
[341204089,1730643032425,-152.15,0.000354,31]
[341204090,1730643032435,-152.15,0.000354,31]
[341204091,1730643032448,-501.6006749,0.00035647,5]
[341204092,1730643032457,-160.22699926,0.00035763,5]
[341204093,1730643032467,-504.70687605,0.00035809,2]
[341204094,1730643032477,-500.0,0.00035809,5]
[341204095,1730643032486,-152.15,0.000363,31]
[341204096,1730643032496,-152.15,0.000363,31]
[341204097,1730643032505,-152.15,0.000363,31]
[341204098,1730643032514,-152.15,0.000363,31]
[341204099,1730643032524,-152.15,0.000363,31]
[341204100,1730643032533,-152.15,0.000363,31]
[341204101,1730643032543,-152.15,0.000363,31]
[341204102,1730643032553,-152.15,0.000363,31]
[341204103,1730643032562,-152.15,0.000363,31]
[341204104,1730643032572,-152.15,0.000363,31]
[341204105,1730643032582,-152.15,0.000363,31]
[341204106,1730643032591,-152.15,0.000363,31]
[341204107,1730643032600,-152.15,0.000363,31]
[341204108,1730643032610,-152.15,0.000363,31]
[341204109,1730643032619,-152.15,0.000363,31]
[341204110,1730643032628,-152.15,0.000363,31]
[341204111,1730643032638,-105.94155319,0.000363,31]
[341204118,1730643038530,-500.0,0.00035809,2]
[341204119,1730643038542,-46.20844681,0.000363,31]
[341204120,1730643038552,-152.15,0.000363,31]
[341204121,1730643038561,-152.15,0.000363,31]
[341204122,1730643038571,-152.15,0.000363,31]
[341204123,1730643038580,-500.0,0.00036752,4]
[341204124,1730643038590,-250.0,0.00036752,4]
[341204125,1730643038599,-1386.05,0.00036752,4]
[341204126,1730643038608,-524.29,0.00037026,4]
[341204127,1730643038618,-250.0,0.00037026,4]
[341204128,1730643038627,-1386.05,0.00037026,4]
[341204129,1730643038637,-503.36469654,0.00037168,5]
[341204130,1730643038646,-500.0,0.00037168,2]
[341204131,1730643038656,-503.51020282,0.00037168,5]
[341204132,1730643038665,-509.01688536,0.00037179,5]
[341204133,1730643038675,-1000.0,0.00037179,2]
[341204134,1730643038684,-152.15,0.000373,31]
[341204135,1730643038695,-152.15,0.000373,31]
[341204136,1730643038705,-152.15,0.000373,31]
[341204137,1730643038714,-152.15,0.000373,31]
[341204138,1730643038724,-152.15,0.000373,31]
[341204139,1730643038734,-152.15,0.000373,31]
[341204140,1730643038743,-152.15,0.000373,31]
[341204141,1730643038752,-152.15,0.000373,31]
[341204142,1730643038762,-152.15,0.000373,31]
[341204143,1730643038772,-152.15,0.000373,31]
[341204144,1730643038781,-152.15,0.000373,31]
[341204145,1730643038790,-152.15,0.000373,31]
[341204146,1730643038799,-152.15,0.000373,31]
[341204147,1730643038809,-152.15,0.000373,31]
[341204148,1730643038818,-250.0,0.000373,4]
[341204149,1730643038827,-1386.05,0.000373,4]
[341204150,1730643038837,-2822.50628378,0.00037389,2]
[341204151,1730643038846,-346.08302343,0.00037398,2]
[341204152,1730643038855,-496.11,0.00037489,3]
[341204153,1730643038865,-496.12,0.00037489,3]
[341204154,1730643038976,-500.0,0.00037489,15]
[341204155,1730643038987,-204.26294278,0.00037489,2]
[341204156,1730643038997,-500.0,0.00037489,7]
[341204157,1730643039007,-500.0,0.00037489,15]
[341204158,1730643039016,-500.0,0.00037489,7]
[341204159,1730643039026,-500.0,0.00037489,15]
[341204160,1730643039036,-500.0,0.00037489,7]
[341204161,1730643039045,-527.80408298,0.00037489,15]
[341204162,1730643039054,-500.0,0.00037489,7]
[341204163,1730643039063,-538.38716424,0.00037489,7]
[341204164,1730643039074,-193.85872934,0.00037489,15]
[341204165,1730643039083,-500.0,0.00037489,15]
[341204166,1730643039092,-500.0,0.00037489,15]
[341204167,1730643039103,-500.0,0.00037489,15]
[341204168,1730643039113,-500.0,0.00037489,15]
[341204169,1730643039124,-500.0,0.00037489,15]
[341204170,1730643039133,-500.0,0.00037489,15]
[341204171,1730643039142,-500.0,0.00037489,15]
[341204172,1730643039152,-500.0,0.00037489,15]
[341204173,1730643039161,-500.0,0.00037489,15]
[341204174,1730643039171,-500.0,0.00037489,15]
[341204175,1730643039182,-500.0,0.00037489,15]
[341204176,1730643039191,-650.0,0.00037489,15]
[341204177,1730643039202,-737.05,0.0003749,10]
[341204178,1730643039213,-42500.05711466,0.0003749,10]
[341204179,1730643039222,-504.92105902,0.00037498,4]
[341204180,1730643039231,-1000.0,0.00037499,7]
[341204181,1730643039240,-500.0,0.00037499,7]
[341204182,1730643039250,-500.0,0.00037499,2]
[341204183,1730643039259,-3999.11,0.00037499,120]
[341204184,1730643039268,-21674.02815518,0.000375,60]
[341204185,1730643039278,-526.077,0.000375,120]
[341204186,1730643039288,-250.0,0.00037573,4]
[341204187,1730643039297,-1386.05,0.00037573,4]
[341204188,1730643039307,-614.21,0.00037837,10]
[341204189,1730643039316,-250.0,0.00037847,4]
[341204190,1730643039325,-1386.05,0.00037847,4]
[341204191,1730643039334,-346.08302342,0.00037918,2]
[341204192,1730643039342,-150.0,0.00038,2]
[341204193,1730643039351,-2822.50628373,0.00038033,2]
[341204194,1730643039360,-250.0,0.00038121,4]
[341204195,1730643039370,-1386.05,0.00038121,4]
[341204196,1730643039379,-500.0,0.00038184,10]
[341204197,1730643039388,-2000.0,0.00038356,120]
[341204198,1730643039399,-2000.0,0.00038356,120]
[341204199,1730643039408,-2000.0,0.00038356,120]
[341204200,1730643039417,-2000.0,0.00038356,120]
[341204201,1730643039426,-2000.0,0.00038356,120]
[341204202,1730643039436,-6941.05967379,0.00038369,2]
[341204203,1730643039447,-250.0,0.00038395,4]
[341204204,1730643039456,-1386.05,0.00038395,4]
[341204205,1730643039465,-189.8,0.000384,120]
[341204206,1730643039474,-1000.0,0.00038424,2]
[341204207,1730643039483,-3999.11,0.00038458,120]
[341204208,1730643039491,-150.01,0.00038509,2]
[341204209,1730643039502,-1959.28841745,0.00038509,2]
[341204210,1730643039512,-2727.78419368,0.00038524,30]
[341204211,1730643039524,-48599.9999993,0.00038524,30]
[341204272,1730643043275,-551475.53114571,0.00038524,30]
[341204273,1730643043285,-501.44712668,0.00038538,2]
[341204274,1730643043294,-151.0,0.00038548,120]
[341204275,1730643043304,-151.0,0.00038548,120]
[341204276,1730643043313,-1036.96,0.000386,30]
[341204277,1730643043322,-700.65,0.000386,30]
[341204278,1730643043332,-3333.82,0.000386,30]
[341204279,1730643043341,-4253.67,0.000386,30]
[341204280,1730643043350,-9108.11,0.000386,30]
[341204281,1730643043359,-150.112233,0.000386,17]
[341204282,1730643043368,-250.0,0.00038669,4]
[341204283,1730643043378,-1386.05,0.00038669,4]
[341204284,1730643043387,-2822.50628373,0.00038678,2]
[341204285,1730643043396,-150.112233,0.000387,11]
[341204286,1730643043406,-500.0,0.00038869,13]
[341204287,1730643043415,-500.0,0.00038873,5]
[341204288,1730643043424,-500.0,0.00038873,5]
[341204289,1730643043433,-500.0,0.00038873,5]
[341204290,1730643043442,-926649.35727462,0.0003888,120]
[341204291,1730643043452,-173.61111111,0.0003888,2]
[341204292,1730643043461,-250.0,0.00038943,4]
[341204293,1730643043470,-1386.05,0.00038943,4]
[341204294,1730643043479,-411.63205963,0.00038999,15]
[341204295,1730643043489,-422.49236376,0.00038999,15]
[341204296,1730643043498,-471.84699661,0.00038999,15]
[341204297,1730643043507,-452.33703511,0.00038999,15]
[341204298,1730643043516,-460.23139489,0.00038999,15]
[341204299,1730643043525,-500.0,0.00038999,15]
[341204300,1730643043535,-500.0,0.00038999,15]
[341204301,1730643043544,-500.0,0.00038999,15]
[341204302,1730643043555,-500.0,0.00038999,15]
[341204303,1730643043564,-500.0,0.00038999,15]
[341204304,1730643043574,-500.0,0.00038999,15]
[341204305,1730643043584,-500.0,0.00038999,15]
[341204306,1730643043593,-500.0,0.00038999,15]
[341204307,1730643043602,-500.0,0.00038999,15]
[341204308,1730643043612,-500.0,0.00038999,15]
[341204309,1730643043621,-500.0,0.00038999,15]
[341204310,1730643043631,-500.0,0.00038999,15]
[341204311,1730643043640,-500.0,0.00038999,15]
[341204312,1730643043650,-500.0,0.00038999,15]
[341204313,1730643043660,-500.0,0.00038999,15]
[341204314,1730643043670,-500.0,0.00038999,15]
[341204315,1730643043680,-500.0,0.00038999,15]
[341204316,1730643043691,-500.0,0.00038999,15]
[341204317,1730643043705,-500.0,0.00038999,15]
[341204318,1730643043718,-500.0,0.00038999,15]
[341204319,1730643043727,-500.0,0.00038999,15]
[341204320,1730643043738,-500.0,0.00038999,15]
[341204321,1730643043748,-500.0,0.00038999,15]
[341204322,1730643043758,-500.0,0.00038999,15]
[341204323,1730643043769,-500.0,0.00038999,15]
[341204324,1730643043779,-500.0,0.00038999,15]
[341204325,1730643043788,-500.0,0.00038999,15]
[341204326,1730643043798,-350.0,0.00038999,15]
[341204327,1730643043810,-225.31156478,0.00038999,15]
[341204328,1730643043822,-282.04301825,0.00038999,7]
[341204329,1730643043835,-700.05057052,0.00039,3]
[341204330,1730643043846,-50000.0,0.00039,20]
[341204331,1730643043859,-352.26043748,0.00039,2]
[341204332,1730643043870,-5189.21995309,0.00039,120]
[341204333,1730643043882,-1000.0,0.00039,120]
[341204334,1730643043892,-65627.13107147,0.00039,20]
[341204335,1730643043902,-160.0,0.00039,2]
[341204336,1730643043913,-151.0,0.00039,14]
[341204337,1730643043929,-151.0,0.00039,14]
[341204338,1730643043941,-151.0,0.00039,14]
[341204339,1730643043953,-151.0,0.00039,3]
[341204340,1730643043964,-151.0,0.00039,14]
[341204341,1730643043975,-151.0,0.00039,14]
[341204342,1730643043987,-151.0,0.00039,14]
[341204343,1730643043998,-199.106635,0.00039,14]
[341204344,1730643044009,-199.106635,0.00039,14]
[341204345,1730643044020,-151.0,0.00039,14]
[341204346,1730643044031,-264.838393,0.00039,14]
[341204347,1730643044041,-151.0,0.00039,14]
[341204348,1730643044052,-264.838393,0.00039,14]
[341204349,1730643044067,-523.610075,0.00039,14]
[341204350,1730643044078,-523.610075,0.00039,14]
[341204351,1730643044090,-151.0,0.00039,14]
[341204352,1730643044101,-151.0,0.00039,14]
[341204353,1730643044112,-151.0,0.00039,14]
[341204354,1730643044124,-151.0,0.00039,14]
[341204355,1730643044136,-151.0,0.00039,14]
[341204356,1730643044146,-151.0,0.00039,14]
[341204357,1730643044157,-151.0,0.00039,14]
[341204358,1730643044167,-151.0,0.00039,14]
[341204359,1730643044178,-151.0,0.00039,14]
[341204360,1730643044189,-151.0,0.00039,14]
[341204361,1730643044204,-151.0,0.00039,14]
[341204362,1730643044215,-158.046537,0.00039142,14]
[341204363,1730643044226,-151.0,0.00039142,14]
[341204364,1730643044237,-151.0,0.00039142,14]
[341204365,1730643044248,-151.0,0.00039142,14]
[341204366,1730643044259,-151.0,0.00039142,14]
[341204367,1730643044270,-260.720324,0.00039142,14]
[341204368,1730643044280,-214.567508,0.00039142,14]
[341204369,1730643044290,-214.567508,0.00039142,14]
[341204370,1730643044300,-250.0,0.00039217,4]
[341204371,1730643044311,-1386.05,0.00039217,4]
[341204372,1730643044322,-2822.50628373,0.00039322,2]
[341204373,1730643044331,-403.134543,0.00039327,14]
[341204374,1730643044342,-151.0,0.00039327,14]
[341204375,1730643044353,-403.134543,0.00039327,14]
[341204376,1730643044364,-151.0,0.00039327,14]
[341204377,1730643044374,-3999.11,0.00039417,120]
[341204378,1730643044384,-300.00445315,0.0003948,5]
[341204379,1730643044397,-250.0,0.00039491,4]
[341204380,1730643044408,-1386.05,0.00039491,4]
[341204381,1730643044420,-223.48655,0.000395,120]
[341204382,1730643044432,-500.0,0.00039554,16]
[341204383,1730643044445,-1500.0,0.00039684,2]
[341204384,1730643044458,-3070.8614902,0.000397,30]
[341204385,1730643044472,-250.0,0.00039765,4]
[341204386,1730643044485,-1386.05,0.00039765,4]
[341204387,1730643044497,-96094.8655223,0.0003988,30]
[341204388,1730643044508,-264.838393,0.0003988,14]
[341204389,1730643044520,-151.0,0.0003988,14]
[341204390,1730643044530,-264.838393,0.0003988,14]
[341204391,1730643044539,-523.610075,0.0003988,14]
[341204392,1730643044549,-523.610075,0.0003988,14]
[341204393,1730643044559,-151.0,0.0003988,14]
[341204394,1730643044569,-156.871252,0.0003988,14]
[341204395,1730643044579,-151.0,0.0003988,14]
[341204396,1730643044589,-151.0,0.0003988,14]
[341204397,1730643044598,-151.0,0.0003988,14]
[341204398,1730643044609,-151.0,0.0003988,14]
[341204399,1730643044620,-151.0,0.0003988,14]
[341204400,1730643044631,-151.0,0.0003988,14]
[341204401,1730643044643,-151.0,0.0003988,14]
[341204402,1730643044655,-3000.0,0.000399,120]
[341204403,1730643044666,-5000.0,0.000399,90]
[341204404,1730643044678,-151.0,0.000399,14]
[341204405,1730643044688,-151.0,0.000399,14]
[341204406,1730643044703,-151.0,0.000399,14]
[341204407,1730643044714,-151.0,0.000399,14]
[341204408,1730643044726,-151.0,0.000399,14]
[341204409,1730643044737,-151.0,0.000399,14]
[341204410,1730643044749,-151.0,0.000399,3]
[341204411,1730643044759,-151.0,0.000399,14]
[341204412,1730643044772,-151.0,0.000399,14]
[341204413,1730643044783,-151.0,0.000399,14]
[341204414,1730643044795,-199.106635,0.000399,14]
[341204415,1730643044805,-199.106635,0.000399,14]
[341204416,1730643044816,-151.0,0.000399,14]
[341204417,1730643044827,-403.134543,0.00039926,14]
[341204418,1730643044837,-151.0,0.00039926,14]
[341204419,1730643044847,-403.134543,0.00039926,14]
[341204420,1730643044857,-151.0,0.00039926,14]
[341204421,1730643044868,-151.0,0.00039926,14]
[341204422,1730643044880,-151.0,0.00039926,14]
[341204423,1730643044890,-151.0,0.00039926,14]
[341204424,1730643044900,-151.0,0.00039926,14]
[341204425,1730643044910,-151.0,0.00039926,14]
[341204426,1730643044921,-214.567508,0.00039926,14]
[341204427,1730643044931,-214.567508,0.00039926,14]
[341204428,1730643044941,-154.162139,0.00039964,14]
[341204429,1730643044953,-151.0,0.00039964,14]
[341204430,1730643044963,-2822.50628373,0.00039967,2]
[341204431,1730643044974,-151.0,0.00039973,120]
[341204432,1730643044985,-556.0778235,0.0004,7]
[341204433,1730643044995,-500.0,0.0004,2]
[341204434,1730643045006,-700.05057052,0.0004,3]
[341204435,1730643045017,-4998.24239458,0.0004,2]
[341204436,1730643045027,-250.0,0.0004,60]
[341204437,1730643045144,-223.37309169,0.0004,120]
[341204438,1730643045154,-500.0,0.0004,30]
[341204439,1730643045164,-3086.65501649,0.0004,120]
[341204440,1730643045175,-5001.42437942,0.0004,30]
[341204441,1730643045185,-21032.73700995,0.0004,30]
[341204442,1730643045194,-20000.0,0.0004,14]
[341204443,1730643045205,-34659.42938871,0.0004,30]
[341204444,1730643045214,-6383.0,0.0004,30]
[341204445,1730643045224,-4779.32422827,0.0004,120]
[341204446,1730643045233,-4010.08463806,0.0004,120]
[341204447,1730643045243,-200.0,0.0004,120]
[341204448,1730643045252,-600.0,0.0004,6]
[341204449,1730643045262,-600.0,0.0004,2]
[341204450,1730643045271,-600.0,0.0004,6]
[341204451,1730643045280,-600.0,0.0004,3]
[341204452,1730643045293,-500.0,0.0004,10]
[341204453,1730643045302,-248.34,0.0004,2]
[341204454,1730643045312,-1475.0,0.0004,7]
[341204455,1730643045322,-8014.63901016,0.0004,120]
[341204456,1730643045332,-91437.60759601,0.0004,30]
[341204457,1730643045342,-30779.49906934,0.0004,120]
[341204458,1730643045352,-25112.43918744,0.0004,120]
[341204459,1730643045361,-1000.0,0.0004,120]
[341204460,1730643045371,-1121.24494017,0.0004,120]
[341204461,1730643045380,-151.0,0.0004,14]
[341204462,1730643045390,-151.0,0.0004,14]
[341204463,1730643045399,-151.0,0.0004,14]
[341204464,1730643045409,-151.0,0.0004,14]
[341204465,1730643045420,-151.0,0.0004,14]
[341204466,1730643045430,-151.0,0.0004,14]
[341204467,1730643045439,-217.00791,0.0004,14]
[341204468,1730643045449,-403.134543,0.0004,14]
[341204469,1730643045461,-403.134543,0.0004,14]
[341204470,1730643045470,-151.0,0.0004,14]
[341204471,1730643045480,-151.0,0.0004,14]
[341204472,1730643045490,-203.321666,0.0004,14]
[341204473,1730643045501,-151.0,0.0004,14]
[341204474,1730643045511,-151.0,0.0004,14]
[341204475,1730643045521,-152.358092,0.0004,3]
[341204476,1730643045532,-151.0,0.0004,14]
[341204477,1730643045542,-151.0,0.0004,14]
[341204478,1730643045552,-151.0,0.0004,14]
[341204479,1730643045562,-151.0,0.0004,14]
[341204480,1730643045572,-199.106635,0.0004,14]
[341204481,1730643045581,-199.106635,0.0004,14]
[341204482,1730643045591,-199.106635,0.0004,14]
[341204483,1730643045601,-199.106635,0.0004,14]
[341204484,1730643045611,-151.0,0.0004,14]
[341204485,1730643045621,-151.0,0.0004,14]
[341204486,1730643045631,-264.838393,0.0004,14]
[341204487,1730643045641,-264.838393,0.0004,14]
[341204488,1730643045651,-151.0,0.0004,14]
[341204489,1730643045661,-151.0,0.0004,14]
[341204490,1730643045670,-264.838393,0.0004,14]
[341204491,1730643045679,-264.838393,0.0004,14]
[341204492,1730643045689,-214.567508,0.0004,14]
[341204493,1730643045706,-214.567508,0.0004,14]
[341204494,1730643045716,-523.610075,0.0004,14]
[341204495,1730643045726,-523.610075,0.0004,14]
[341204496,1730643045736,-523.610075,0.0004,14]
[341204497,1730643045746,-523.610075,0.0004,14]
[341204498,1730643045757,-151.0,0.0004,14]
[341204499,1730643045768,-151.0,0.0004,14]
[341204500,1730643045778,-151.0,0.0004,14]
[341204501,1730643045788,-151.0,0.0004,14]
[341204502,1730643045798,-151.0,0.0004,14]
[341204503,1730643045808,-151.0,0.0004,14]
[341204504,1730643045818,-151.0,0.0004,14]
[341204506,1730643045829,-151.0,0.0004,14]
[341204509,1730643045840,-507.12582444,0.0004,5]
[341204511,1730643045851,-250.0,0.00040039,4]
[341204513,1730643045861,-1386.05,0.00040039,4]
[341204515,1730643045871,-163.62679167,0.00040231,2]
[341204517,1730643045881,-500.0,0.00040239,19]
[341204519,1730643045892,-500.0,0.00040239,2]
[341204521,1730643045903,-1000.0,0.00040242,5]
[341204523,1730643045913,-1000.0,0.00040242,5]
[341204525,1730643045923,-1000.0,0.00040242,5]
[341204527,1730643045934,-250.0,0.00040313,4]
[341204529,1730643045945,-1386.05,0.00040313,4]
[341204531,1730643045959,-3999.11,0.00040376,120]
[341204532,1730643045969,-500.0,0.00040434,30]
[341204533,1730643045978,-500.0,0.00040434,30]
[341204534,1730643045987,-500.0,0.00040434,30]
[341204535,1730643045996,-500.0,0.00040434,30]
[341204536,1730643046006,-500.0,0.00040434,30]
[341204537,1730643046016,-500.0,0.00040434,30]
[341204538,1730643046027,-1030.0,0.000405,120]
[341204539,1730643046037,-250.0,0.00040587,4]
[341204540,1730643046047,-1386.05,0.00040587,4]
[341204541,1730643046057,-2822.50628373,0.00040611,28]
[341204542,1730643046068,-151.0,0.00040685,120]